{"text_format":"1","workbook":"xlsx","n_sheets":4,"sheets":["Vergleich","Rohdaten","Listen","Tabelle3"],"not_rendered":{"charts":0,"images":0,"macros":1,"external_links":0,"defined_names":2,"comments":0,"pivot_tables":0},"unopened":[],"bounds":{"document_bytes":16777216,"sheet_cells":100000,"rows_first":2000,"rows_last":500,"rows_between":2000,"halvings":0,"cell_chars":16384,"cell_head_chars":4096},"cells_cut":0,"cells_raw":0,"read":"whole","date_system":"1900"}

{"sheet":"Vergleich","index":0,"n_rows":42,"n_cols":12,"rows_kept":42,"cut":false,"hidden":false,"merged":[[22,0,33,0],[36,0,41,0],[2,0,14,0],[15,0,21,0]]}
[null,null,"Hier Tarif 1 auswählen","Hier Tarif 2 auswählen"]
[null,"Tarifname","SIGNAL IDUNA - GesundAKTIV+","AXA - FlexMed easyPremium",null,{"$f":"HLOOKUP(C2,Rohdaten!1:2,2,FALSE)","v":2},{"$f":"HLOOKUP(D2,Rohdaten!1:2,2,FALSE)","v":15},null,null,null,"Passwort\n(Blattschutz):","psekv-94410"]
["ALLGEMEIN","Tarifeinführung",{"$f":"VLOOKUP($B3,Rohdaten!$A$1:$AT$43,$F$2,FALSE)","v":"2022-10-18"},{"$f":"VLOOKUP($B3,Rohdaten!$A$1:$AT$43,$G$2,FALSE)","v":"2025-09-01"}]
[null,"Budgetstufen",{"$f":"VLOOKUP($B4,Rohdaten!$A$1:$AT$43,$F$2,FALSE)","v":"300/600/900/1200/1500"},{"$f":"VLOOKUP($B4,Rohdaten!$A$1:$AT$43,$G$2,FALSE)","v":"300/600/900/ 1200/ 1500"}]
[null,"Mindestzahl",{"$f":"VLOOKUP($B5,Rohdaten!$A$1:$AT$43,$F$2,FALSE)","v":"ab 3 MA"},{"$f":"VLOOKUP($B5,Rohdaten!$A$1:$AT$43,$G$2,FALSE)","v":"ab 5 MA ab Budgetstufe 600, sonst ab 10 MA"}]
[null,"Auch für PKV-Versicherte",{"$f":"VLOOKUP($B6,Rohdaten!$A$1:$AT$43,$F$2,FALSE)","v":"Ja"},{"$f":"VLOOKUP($B6,Rohdaten!$A$1:$AT$43,$G$2,FALSE)","v":"Ja"}]
[null,"Ohne Gesundheitsprüfung",{"$f":"VLOOKUP($B7,Rohdaten!$A$1:$AT$43,$F$2,FALSE)","v":"Ja"},{"$f":"VLOOKUP($B7,Rohdaten!$A$1:$AT$43,$G$2,FALSE)","v":"Ja"}]
[null,"Volles Budget bei unterjährigem Beginn",{"$f":"VLOOKUP($B8,Rohdaten!$A$1:$AT$43,$F$2,FALSE)","v":"Ja"},{"$f":"VLOOKUP($B8,Rohdaten!$A$1:$AT$43,$G$2,FALSE)","v":"Ja"}]
[null,"Mitvers. fehlender Zähne",{"$f":"VLOOKUP($B9,Rohdaten!$A$1:$AT$43,$F$2,FALSE)","v":"Ja"},{"$f":"VLOOKUP($B9,Rohdaten!$A$1:$AT$43,$G$2,FALSE)","v":"Ja"}]
[null,"Leistungen für angeratene/ laufende Behandlungen",{"$f":"VLOOKUP($B10,Rohdaten!$A$1:$AT$43,$F$2,FALSE)","v":"Ja"},{"$f":"VLOOKUP($B10,Rohdaten!$A$1:$AT$43,$G$2,FALSE)","v":"Ja"}]
[null,"Assistanceleistungen",{"$f":"VLOOKUP($B11,Rohdaten!$A$1:$AT$43,$F$2,FALSE)","v":"Ja"},{"$f":"VLOOKUP($B11,Rohdaten!$A$1:$AT$43,$G$2,FALSE)","v":"Ja, zum Teil kostenpflichtig"}]
[null,"Beitragsbefreiung (b. AU > 6 Wo, Eltern-, Familienpflegezeit)",{"$f":"VLOOKUP($B12,Rohdaten!$A$1:$AT$43,$F$2,FALSE)","v":"Ja"},{"$f":"VLOOKUP($B12,Rohdaten!$A$1:$AT$43,$G$2,FALSE)","v":"Ja"}]
[null,"Weiterversicherung ",{"$f":"VLOOKUP($B13,Rohdaten!$A$1:$AT$43,$F$2,FALSE)","v":"Ja"},{"$f":"VLOOKUP($B13,Rohdaten!$A$1:$AT$43,$G$2,FALSE)","v":"Ja, in Einzeltarifen"}]
[null,"Mitvers. Familienangehörige",{"$f":"VLOOKUP($B14,Rohdaten!$A$1:$AT$43,$F$2,FALSE)","v":"Ja"},{"$f":"VLOOKUP($B14,Rohdaten!$A$1:$AT$43,$G$2,FALSE)","v":"Ja, ab 50 MA in Einzeltarifen"}]
[null,"Ohne Gesundheitsprüfung (Angehörige)",{"$f":"VLOOKUP($B15,Rohdaten!$A$1:$AT$43,$F$2,FALSE)","v":"Ja (für Budget 300/600)"},{"$f":"VLOOKUP($B15,Rohdaten!$A$1:$AT$43,$G$2,FALSE)","v":"Nein"}]
["ZAHN","Zahnersatz (Implantate, Brücken, Kronen)",{"$f":"VLOOKUP($B16,Rohdaten!$A$1:$AT$43,$F$2,FALSE)","v":"Ja"},{"$f":"VLOOKUP($B16,Rohdaten!$A$1:$AT$43,$G$2,FALSE)","v":"Ja"}]
[null,"Kieferorthopädie nach Unfall",{"$f":"VLOOKUP($B17,Rohdaten!$A$1:$AT$43,$F$2,FALSE)","v":"Ja"},{"$f":"VLOOKUP($B17,Rohdaten!$A$1:$AT$43,$G$2,FALSE)","v":"Ja"}]
[null,"Zahnbehandlung",{"$f":"VLOOKUP($B18,Rohdaten!$A$1:$AT$43,$F$2,FALSE)","v":"Ja"},{"$f":"VLOOKUP($B18,Rohdaten!$A$1:$AT$43,$G$2,FALSE)","v":"Ja"}]
[null,"Prof. Zahnreinigung",{"$f":"VLOOKUP($B19,Rohdaten!$A$1:$AT$43,$F$2,FALSE)","v":"max. 300€ jährlich"},{"$f":"VLOOKUP($B19,Rohdaten!$A$1:$AT$43,$G$2,FALSE)","v":"Ja"}]
[null,"Bleaching ",{"$f":"VLOOKUP($B20,Rohdaten!$A$1:$AT$43,$F$2,FALSE)","v":"max. 100€ jährlich"},{"$f":"VLOOKUP($B20,Rohdaten!$A$1:$AT$43,$G$2,FALSE)","v":"max. 80€ jährlich"}]
[null,"Schmerzstillende Behandlungen",{"$f":"VLOOKUP($B21,Rohdaten!$A$1:$AT$43,$F$2,FALSE)","v":"Ja"},{"$f":"VLOOKUP($B21,Rohdaten!$A$1:$AT$43,$G$2,FALSE)","v":"Nein"}]
[null,"Sonstige Leistungen (Zahn)",{"$f":"VLOOKUP($B22,Rohdaten!$A$1:$AT$43,$F$2,FALSE)","v":"Nein"},{"$f":"VLOOKUP($B22,Rohdaten!$A$1:$AT$43,$G$2,FALSE)","v":"Ja, transparente Zahnschienen"}]
["AMBULANT & KHT","Sehhilfen",{"$f":"VLOOKUP($B23,Rohdaten!$A$1:$AT$43,$F$2,FALSE)","v":"max. 300€ jährlich"},{"$f":"VLOOKUP($B23,Rohdaten!$A$1:$AT$43,$G$2,FALSE)","v":"max. 450€ jährlich"}]
[null,"Refraktive Chirurgie",{"$f":"VLOOKUP($B24,Rohdaten!$A$1:$AT$43,$F$2,FALSE)","v":"Ja"},{"$f":"VLOOKUP($B24,Rohdaten!$A$1:$AT$43,$G$2,FALSE)","v":"Ja"}]
[null,"Vorsorgeuntersuchungen",{"$f":"VLOOKUP($B25,Rohdaten!$A$1:$AT$43,$F$2,FALSE)","v":"Ja"},{"$f":"VLOOKUP($B25,Rohdaten!$A$1:$AT$43,$G$2,FALSE)","v":"Ja"}]
[null,"Schutzimpfungen",{"$f":"VLOOKUP($B26,Rohdaten!$A$1:$AT$43,$F$2,FALSE)","v":"Ja"},{"$f":"VLOOKUP($B26,Rohdaten!$A$1:$AT$43,$G$2,FALSE)","v":"Ja"}]
[null,"Präventionskurse",{"$f":"VLOOKUP($B27,Rohdaten!$A$1:$AT$43,$F$2,FALSE)","v":"Ja"},{"$f":"VLOOKUP($B27,Rohdaten!$A$1:$AT$43,$G$2,FALSE)","v":"Ja"}]
[null,"Arznei & Verbandmittel",{"$f":"VLOOKUP($B28,Rohdaten!$A$1:$AT$43,$F$2,FALSE)","v":"Ja"},{"$f":"VLOOKUP($B28,Rohdaten!$A$1:$AT$43,$G$2,FALSE)","v":"Ja"}]
[null,"Heil- & Hilfsmittel",{"$f":"VLOOKUP($B29,Rohdaten!$A$1:$AT$43,$F$2,FALSE)","v":"Ja"},{"$f":"VLOOKUP($B29,Rohdaten!$A$1:$AT$43,$G$2,FALSE)","v":"Ja"}]
[null,"Kinesio—Taping (Arzt/ Heilpraktiker/Physiotherapeut)",{"$f":"VLOOKUP($B30,Rohdaten!$A$1:$AT$43,$F$2,FALSE)","v":"max. 100€ jährlich"},{"$f":"VLOOKUP($B30,Rohdaten!$A$1:$AT$43,$G$2,FALSE)","v":"Ja"}]
[null,"Übernahme gesetzl. Zuzahlungen",{"$f":"VLOOKUP($B31,Rohdaten!$A$1:$AT$43,$F$2,FALSE)","v":"Ja"},{"$f":"VLOOKUP($B31,Rohdaten!$A$1:$AT$43,$G$2,FALSE)","v":"Ja"}]
[null,"Heilpraktiker / Naturheilkunde",{"$f":"VLOOKUP($B32,Rohdaten!$A$1:$AT$43,$F$2,FALSE)","v":"Ja"},{"$f":"VLOOKUP($B32,Rohdaten!$A$1:$AT$43,$G$2,FALSE)","v":"Ja"}]
[null,"Erstattung für nichtärztliche Osteopathen u. Chiropraktiker",{"$f":"VLOOKUP($B33,Rohdaten!$A$1:$AT$43,$F$2,FALSE)","v":"Nein"},{"$f":"VLOOKUP($B33,Rohdaten!$A$1:$AT$43,$G$2,FALSE)","v":"Nein, nur für Heilpraktiker"}]
[null,"KHT/ Leistungspauschale",{"$f":"VLOOKUP($B34,Rohdaten!$A$1:$AT$43,$F$2,FALSE)","v":"Nein"},{"$f":"VLOOKUP($B34,Rohdaten!$A$1:$AT$43,$G$2,FALSE)","v":"10€, max. 28T/KJ"}]
[null,"Sonstige Leistungen (Ambulant)",{"$f":"VLOOKUP($B35,Rohdaten!$A$1:$AT$43,$F$2,FALSE)","v":"Nein"},{"$f":"VLOOKUP($B35,Rohdaten!$A$1:$AT$43,$G$2,FALSE)","v":"Ja, Budgetleistung ambulante Psychotherapie"}]
["SERVICE","Arbeitgeberportal",{"$f":"VLOOKUP($B36,Rohdaten!$A$1:$AT$43,$F$2,FALSE)","v":"Ja"},{"$f":"VLOOKUP($B36,Rohdaten!$A$1:$AT$43,$G$2,FALSE)","v":"Ja"}]
["BEITRAG","Beitrag 1",{"$f":"VLOOKUP($B37,Rohdaten!$A$1:$AT$43,$F$2,FALSE)","v":"300€:   13,00€"},{"$f":"VLOOKUP($B37,Rohdaten!$A$1:$AT$43,$G$2,FALSE)","v":"300€: 13,59€"}]
[null,"Beitrag 2",{"$f":"VLOOKUP($B38,Rohdaten!$A$1:$AT$43,$F$2,FALSE)","v":"600€:   22,00€"},{"$f":"VLOOKUP($B38,Rohdaten!$A$1:$AT$43,$G$2,FALSE)","v":"600€: 24,30€"}]
[null,"Beitrag 3",{"$f":"VLOOKUP($B39,Rohdaten!$A$1:$AT$43,$F$2,FALSE)","v":"900€:   30,00€"},{"$f":"VLOOKUP($B39,Rohdaten!$A$1:$AT$43,$G$2,FALSE)","v":"900€: 30,86€"}]
[null,"Beitrag 4",{"$f":"VLOOKUP($B40,Rohdaten!$A$1:$AT$43,$F$2,FALSE)","v":"1200€: 37,00€"},{"$f":"VLOOKUP($B40,Rohdaten!$A$1:$AT$43,$G$2,FALSE)","v":"1200€: 39,18€"}]
[null,"Beitrag 5",{"$f":"VLOOKUP($B41,Rohdaten!$A$1:$AT$43,$F$2,FALSE)","v":"1500€: 43,00€"},{"$f":"VLOOKUP($B41,Rohdaten!$A$1:$AT$43,$G$2,FALSE)","v":"1500€: 46,33€"}]
[null,"Beitrag 6",{"$f":"VLOOKUP($B42,Rohdaten!$A$1:$AT$43,$F$2,FALSE)","v":"-"},{"$f":"VLOOKUP($B42,Rohdaten!$A$1:$AT$43,$G$2,FALSE)","v":"-"}]

{"sheet":"Rohdaten","index":1,"n_rows":45,"n_cols":62,"rows_kept":45,"cut":false,"hidden":true,"merged":[]}
["Tarifname","SIGNAL IDUNA - GesundAKTIV+","ALLIANZ - MeinGesundheitsBudget (alt)","Allianz - MeineGesundheit (neu)","Allianz - MeineGesundheit (neu) + RundumZahn 70","Allianz - MeineGesundheit (neu) + RundumZahn 90","Allianz - MeineGesundheit (neu) + RundumZahn 100","Allianz - MeineGesundheit (neu) + Sehhilfe 100","Allianz - MeineGesundheit (neu) + SehhilfeExtra","ARAG - BudgetFlex Komfort","ARAG - BudgetFlex Premium","AXA - FlexMed easy","AXA - FlexMed easy (neu)","AXA - FlexMed easyPLUS","AXA - FlexMed easyPremium","BARMENIA - WellYouStart","BARMENIA - WellYou","Debeka - DebeCare","Debeka - DebeCare Plus","Debeka - DebeCare Best","Münchener Verein - GemeinsamGesundBudget","GOTHAER - FlexSelect","GOTHAER - FlexSelectPremium1","GOTHAER - FlexSelectXL1","GOTHAER - FlexSelect FAN","HALLESCHE - FEELfree","HALLESCHE - FEELfree-up 1","NÜRNBERGER - BudgetSelect","NÜRNBERGER - BudgetSelect mit Zahnersatz","OTTNOVA - CrewCare","R+V - Budget PROFIL","CONTINENTALE - ConCept Choose","CONTINENTALE - ConCept Choose More","CONTINENTALE - ConCept Choose Max 1","UKV/BBKK - BudgetPro","Württembergische - Startbudget","Württembergische - Budget","Hanse Merkur - BKB","Hanse Merkur - BKBT","DKV - BonusMed Budget (BBT)","LKH - TeamUpgrade Fit","LKH - TeamUpgrade Smile","Generali - Buisness+","R+V - Budget PROFIL team (2023)","R+V - Budget PROFIL (2023)","  "," "," "," "," "," "," "," "," "," "," "," "," "," "," "," "," "]
[1,2,3,4,5,6,7,8,9,10,11,12,13,14,15,16,17,18,19,20,21,22,23,24,25,26,27,28,29,30,31,32,33,34,35,36,37,38,39,40,41,42,43,44,45]
["Tarifeinführung","2022-10-18","2021-04-01","2025-04-01","2025-04-01","2025-04-01","2025-04-01","2025-04-01","2025-04-01","2022-10-01","2022-10-01","2021-07-19","2023-03-01","2023-03-01","2025-09-01","2021-03-01","2021-03-01","2024-01-01","2024-01-01","2024-01-01","2023-05-01","2020-10-01","2022-10-01","2022-10-01","2023-07-01","2018-10-01","2022-05-01","2022-07-01","2022-07-01","2022-10-01","2022-07-01","2020-11-01","2023-04-01","2023-04-01","2022-12-19","2023-07-01","2023-07-01","2023-09-01","2023-09-01","2023-10-01","2023-10-01","2023-10-02","2022-07-01","2023-12-01","2023-12-01"]
["Budgetstufen","300/600/900/1200/1500","300*/600/900/1200/1500","300*/600/900/1200/1500","300*/600/900/1200/1500","300*/600/900/1200/1500","300*/600/900/1200/1500","300*/600/900/1200/1500","300*/600/900/1200/1500","300/600/900/1200/1500","300/600/900/1200/1500","300/600/900","300/600/900/ 1200/ 1500","300/600/900/ 1200/ 1500","300/600/900/ 1200/ 1500",300,"300/600/900","300/600/1000/1500","300/600/1000/1500","300/600/1000/1500","300/600/1000/1500","300/500/750","300/500/750/1000/1250","300/500/750","300/500/750/1000/1250\nVerdopplung bei Arbeitsunfall","300/600/900/1200/1500","300/600/900/1200/1500","300/600/900/1.200","300/600/900/1.200","300/600/900/1.200/1.500","300/600/900","400/800/1200","400/800/1200/1600","400/800/1200/1600","400/800/1200",300,"300/600/900/1200","300/600/900/ 1200/ 1500/ 1700","300/600/900/ 1200/ 1500/ 1700","300/600/900/ 1200","300/600/900/ 1200/ 1500","300/600/900/ 1200/ 1500","300/600/900/ 1200/ 1500","300/600/900/ 1200/ 1500","300/600/900/ 1200/ 1500"]
["Mindestzahl","ab 3 MA","Ab 10 MA**","Ab 5 MA","Ab 5 MA","Ab 5 MA","Ab 5 MA","Ab 5 MA","Ab 5 MA","10 MA","10 MA","10 MA, mind. 90 %","ab 5 MA","ab 10MA","ab 5 MA ab Budgetstufe 600, sonst ab 10 MA","20 MA, mind. 90 %","5 MA, mind. 90 %","Ab 10 MA","Ab 10 MA","Ab 10 MA","Ab 5 MA*/ Ab 10 MA","5 MA, mind. 90 %","5 MA, mind. 90 %","Ab 500 MA","Ab 5 MA","10 MA","10 MA","ab 5 MA","ab 5 MA","ab 5 MA","ab 5 MA","10 MA","10 MA","10 MA","10 MA","ab 3 MA","ab 3 MA","ab 5 MA","ab 5 MA","ab 10MA","ab 5 MA","ab 5 MA","ab 5 MA, mind 80%","ab 5 MA ","ab 10 MA  "]
["Auch für PKV-Versicherte","Ja","Ja","Ja","Ja","Ja","Ja","Ja","Ja","Ja","Ja","Ja","Ja","Ja","Ja","Ja","Ja","Ja","Ja","Ja","Ja","Ja","Ja","Ja","Ja","Ja","Ja","Ja","Ja","Ja","Ja","Ja","Ja","Ja","Ja","Ja","Ja","Ja","Ja","Ja","Ja","Ja","Ja","Ja","Ja"]
["Ohne Gesundheitsprüfung","Ja","Ja","Ja","Ja","Ja","Ja","Ja","Ja","Ja","Ja","Ja","Ja","Ja","Ja","Ja","Ja","Ja","Ja","Ja","Ja","Ja","Ja","Ja","Ja - Mit Einschränkungen*\n","Ja","Ja","Ja","Ja","Ja","Ja","Ja","Ja","Ja","Ja","Ja","Ja","Ja","Ja","Ja","Ja","Ja","Ja","Ja","Ja"]
["Volles Budget bei unterjährigem Beginn","Ja","Ja","Ja","Ja","Ja","Ja","Ja","Ja","Ja","Ja","Ja","Ja","Ja","Ja","Ja","Ja","Ja","Ja","Ja","Ja","Nein","Ja","Ja","Ja","Nein","Ja","Ja","Ja","Ja","Kürzung um 1/12 eines jeden nicht versicherten Monats","Nein","Ja","Ja","Ja","Nein","Nein","Ja","Ja","Ja","Ja","Ja","Ja","Nein","Ja"]
["Mitvers. fehlender Zähne","Ja","Ja","Ja","Ja","Ja","Ja","Ja","Ja","Ja","Ja","Ja","Ja","Ja","Ja","Ja","Ja","Ja","Ja","Ja","Ja","Ja","Ja","Ja","Ja","Ja","Ja","Ja","Ja","Ja","Ja","Ja","Ja","Ja","Ja","Ja","Ja","Ja","Ja","Ja","Ja","Ja","Ja","Nein","Ja"]
["Leistungen für angeratene/ laufende Behandlungen","Ja","Ja","Ja","Ja","Ja","Ja","Ja","Ja","Ja","Ja","Ja","Ja","Ja","Ja","Ja","Ja",null,null,null,"Ja","Ja","Ja","Ja","Ja, für Gruppenverträge ohne Gesundheitsprüfung","Ja","Ja","Ja","Ja","Ja","Ja","Ja","Ja","Ja","Ja","Ja","Ja","Ja","Ja","Ja","Nein","Nein","Ja","Nein","Ja"]
["Assistanceleistungen","Ja","Ja","Ja","Ja","Ja","Ja","Ja","Ja","Ja","Ja","Ja","Ja","Ja","Ja, zum Teil kostenpflichtig","Ja","Ja","Ja","Ja","Ja","Ja","Ja","Ja","Ja","Ja","Ja","Ja","Ja","Ja","Ja","Ja","Ja","Ja","Ja","Ja","Ja","Ja","Ja","Ja","Ja","Ja","Ja","Ja","Ja","Ja"]
["Beitragsbefreiung (b. AU > 6 Wo, Eltern-, Familienpflegezeit)","Ja","Ja","Ja","Ja","Ja","Ja","Ja","Ja","Ja","Ja","Ja","Ja","Ja","Ja","Ja","Ja","Ja, bis zu 36 Monate","Ja, bis zu 36 Monate","Ja, bis zu 36 Monate","Ja","Ja","Ja","Ja","Ja","Ja","Ja","Ja","Ja","Ja","Mitarbeiter muss auf eigene Rechnung fortführen","Ja","Ja","Ja","Ja","Ja","Ja","Ja, gegen Zuschlag","Ja, gegen Zuschlag","Nein","Max 12 Monate","Max 12 Monate","Nein","Nein","Ja"]
["Weiterversicherung ","Ja","Ja \nin Einzeltarifen","Ja \nin Einzeltarifen","Ja \nin Einzeltarifen","Ja \nin Einzeltarifen","Ja \nin Einzeltarifen","Ja \nin Einzeltarifen","Ja \nin Einzeltarifen","Ja","Ja","Ja \nin Einzeltarifen","Ja \nin Einzeltarifen","Nein","Ja, in Einzeltarifen","Nein","Ja","Ja \nin Einzeltarifen","Ja \nin Einzeltarifen","Ja \nin Einzeltarifen","Ja","Nein","Nein","Nein","Ja","Ja \nin Einzeltarifen","Ja \nin Einzeltarifen","Ja","Ja","Nein","Nein","Ja","Ja","Ja","Ja","Ja","Ja","Ja","Ja","Ja","Nein","Nein","Ja, im Buisness+ AF","Ja, über die Tariflinie individual","Ja, über die Tariflinie individual"]
["Mitvers. Familienangehörige","Ja","Ja \nin Einzeltarifen","Ja \nin Einzeltarifen","Ja \nin Einzeltarifen","Ja \nin Einzeltarifen","Ja \nin Einzeltarifen","Ja \nin Einzeltarifen","Ja \nin Einzeltarifen","Ja","Ja","Ja \nin Einzeltarifen","Ja, ab 50 MA in Einzeltarifen","Ja, ab 50 MA in Einzeltarifen","Ja, ab 50 MA in Einzeltarifen","Nein","Ja","Ja","Ja","Ja","Ja","Nein","Nein","Nein","Ja","Nein","Ja \nin Einzeltarifen","Ja","Ja","Nein\nIst momentan noch nicht möglich","Nein","Ja","Ja","Ja","Ja","Ja","Ja","Ja","Ja","Ja, in Tariflinie BonusMed Kompakt","Nein","Nein","Ja","Ja, über die Tariflinie individual","Ja, über die Tariflinie individual"]
["Ohne Gesundheitsprüfung (Angehörige)","Ja (für Budget 300/600)","Nein","Ja (Öffnungsklausel von 12 Monaten)","Ja (Öffnungsklausel von 12 Monaten)","Ja (Öffnungsklausel von 12 Monaten)","Ja (Öffnungsklausel von 12 Monaten)","Ja (Öffnungsklausel von 12 Monaten)","Ja (Öffnungsklausel von 12 Monaten)","Ja (Öffnungsklausel von 3 Monaten)","Ja (Öffnungsklausel von 3 Monaten)","Ja (Öffnungsklausel)","Nein","Nein","Nein","Nein","Ja (für gleichen Tarif wie AN, außer lfd./angeratene Behandlungen und fehlende Zähne) ","Ja (Öffnungsklausel von 3 Monaten für gleiche/n Tarif/e wie AN)","Ja (Öffnungsklausel von 3 Monaten für gleiche/n Tarif/e wie AN)","Ja (Öffnungsklausel von 3 Monaten für gleiche/n Tarif/e wie AN)","Ja (Öffnungsklausel von 3 Monaten)","Nein","Nein","Nein","Ja (Öffnungsklausel von  Monaten, außer Schwerstdiagnosen)","Nein","Ja (Öffnungsklausel)","Ja (Öffnungsklausel von 6 Monaten)","Ja (Öffnungsklausel von 6 Monaten)","Nein","Ja (Öffnungsklausel von 6 Monaten)","Ja (Öffnungsklausel von 3 Monaten)","Ja (Öffnungsklausel von 3 Monaten)","Ja (Öffnungsklausel von 3 Monaten)","Keine Informationen","Ja (Öffnungsklausel von 6 Monaten)","Ja (Öffnungsklausel von 6 Monaten)","Ja","Ja","Ja (Öffnungsklausel von 3 Monaten)","Nein","Nein","Ja (Öffnungsklausel von 6 Monaten)","Ja (Öffnungsklausel von 6 Monaten - Höchstalter 60)","Ja (Öffnungsklausel von 6 Monaten - Höchstalter 60)"]
["Zahnersatz (Implantate, Brücken, Kronen)","Ja","Ja","Ja","70% außerhalb des Budgets","90% außerhalb des Budgets","100% außerhalb des Budgets","Ja","Ja","Ja","Ja","Ja","Ja","Nein","Ja","Ja","Ja","Nein","50% vom Rechnungsbetrag","30% vom Rechnungsbetrag","Ja","Ja","Ja","Ja","Ja","Ja","Ja","Nein","Ja","Ja","Nein","Ja","Ja","Ja","Ja","Optional","Optional","Ja","Ja","Ja","Nein","Ja","Nein","Ja","Ja"]
["Kieferorthopädie nach Unfall","Ja","inkl. schwere Erkrank.","inkl. schwere Erkrank.","70% außerhalb des Budgets\ninkl. schwere Erkrank.","90% außerhalb des Budgets\ninkl. schwere Erkrank.","100% außerhalb des Budgets\ninkl. schwere Erkrank.","inkl. schwere Erkrank.","inkl. schwere Erkrank.","Ja","Ja","Nein","Nein","Nein","Ja","Ja","Ja","Nein","Nein","Nein","Ja","Nein","Ja","Ja","Ja","Nein","Nein","Nein","Ja","Nein","Nein","Nein","Ja","Ja","Nein","Nein","Ja","Ja","Ja","Nein","Nein","Ja","Nein","Ja","Ja"]
["Zahnbehandlung","Ja","Ja","Ja","Ja, außerhalb des Budgets","Ja, außerhalb des Budgets","Ja, außerhalb des Budgets","Ja","Ja","Ja","Ja","Ja","Ja","Ja","Ja","Ja","Ja","Nein","Nein","Nein","Ja","Ja","Ja","Ja","Ja","Ja","Ja","Ja","Ja","Ja","Bei 300 € Budget: 120 EUR\nBei 600 € Budget: 240 EUR\nBei 900 € Budget: 360 EUR","Ja","Ja","Ja","Ja","Nein","Ja","Ja","Ja","Ja","Nein","Ja","Nein","Ja","Ja"]
["Prof. Zahnreinigung","max. 300€ jährlich","insgesamt max. 80-160€ jährlich. je nach Budgethöhe","Ja","Ja, außerhalb des Budgets","Ja, außerhalb des Budgets","Ja, außerhalb des Budgets","Ja","Ja","max. 80 € jährlich","Ja","max. 80€ jährlich","Gesamtleistung (inkl. Bleaching) max. 80€ jährlich","Ja","Ja","max. 60€ jährlich","Ja","2x jährlich","2x jährlich","2x jährlich","Ja","max. 80€ jährlich","Ja","Ja","Ja","insgesamt bis max. 60€ jährlich","insgesamt bis max. 100€/KJ","Ja","Ja","max. 125€ jährlich","Bei 300 € Budget: 120 EUR\nBei 600 € Budget: 240 EUR\nBei 900 € Budget: 360 EUR","max. 75€ jährlich","max. 250€ jährlich","Ja","Ja","max. 40 € jährlich","max. 80 € jährlich","Tarifstufe 300 bis 600= 80 € jährlich\nTarifstufe 600 bis 900= 100 € jährlich\nTarifstufe ab 900= 120 € jährlich","Tarifstufe 300 bis 600= 200 € jährlich\nTarifstufe 600 bis 900= 250 € jährlich\nTarifstufe ab 900= 300 € jährlich","Ja","Ja","Ja","max. 100€ jährlich","Ja","Ja"]
["Bleaching ","max. 100€ jährlich","insgesamt max. 80-160€ jährlich. je nach Budgethöhe","Ja","max. 150€ innerhalb von 2 Kalenderjahren außerhalb des Budgets","max. 150€ innerhalb von 2 Kalenderjahren außerhalb des Budgets","max. 150€ innerhalb von 2 Kalenderjahren außerhalb des Budgets","Ja","Ja","Nein","Nein","Nein","Gesamtleistung (inkl. Zahnprophylaxe) max. 80€ jährlich","max. 80€ jährlich","max. 80€ jährlich","Nein","Nein","Nein","Nein","Nein","Nein","Nein","Nein","Nein","Nein","insgesamt bis max. 60€ jährlich","insgesamt bis max. 100€/KJ","Ja","Ja","max. 125€ jährlich","Nein","Nein","max. 250€ jährlich","Ja","Nein","Nein","Nein","Bestandteil der Leistungsart \"Proffesionelle Zahnreinigung\" mit gemeinsamen  Höchstsatz","Bestandteil der Leistungsart \"Proffesionelle Zahnreinigung\" mit gemeinsamen  Höchstsatz","Nein","Nein","200-400 € jährlich\n(50€/Stufe)","Nein","Nein","Nein"]
["Schmerzstillende Behandlungen","Ja","Ja","Ja","Ja, außerhalb des Budgets","Ja, außerhalb des Budgets","Ja, außerhalb des Budgets","Ja","Ja","Ja","Ja","Nein","Nein","Nein","Nein","Ja","Ja","Nein","Nein","Nein","Ja","Nein","Nein","Nein","Nein","Nein","Nein","Nein","Nein","Nein","Nein","Nein","Ja","Ja","Ja","Nur im Zahnersatz enthalten","Ja","Ja","Ja","Nein","Nein","Ja","Nein","Ja","Ja"]
["Sonstige Leistungen (Zahn)","Nein","Nein","Nein","Nein","Nein","Nein","Nein","Nein","Nein","Nein","Ja, transparente Zahnschienen","Ja, transparente Zahnschienen","Ja, transparente Zahnschienen","Ja, transparente Zahnschienen","Nein","Nein","Nein","Nein","Nein","Nein","Nein","Nein","Nein","Nein","Nein","Nein","Nein","Nein","Nein","Nein","Nein","Nein","Nein","Nein","Nein","Nein","Nein","Nein","Nein","Nein","Nein","Nein","Nein","Nein"]
["Sehhilfen","max. 300€ jährlich","max. 180-260€ jährlich je n. Budgethöhe","75%","75%","75%","75%","100%","75%\n+\n75% aus Extrabudget","max. 180 € jährlich","Ja","max. 180€ jährlich","max. 180€ jährlich","max. 300€ jährlich","max. 450€ jährlich","max. 180€ jährlich","Ja","Ja","Ja","Ja","max. bis zur Hälfte der Budgethöhe","max. 180€ jährlich","Ja","Ja","Ja","insgesamt bis max. 180€ jährlich","max. 180€ jährlich"," Ja\nmax. 50 % der Budgethöhe"," Ja\nmax. 50 % der Budgethöhe","max. 200 € -300 € jährlich je n. Budgethöhe","    Bei 300 € Budget: 120 EUR\n    Bei 600 € Budget: 240 EUR\n    Bei 900 € Budget: 360 EUR","Insgesamt bis max. 200€ alle 2 KJ","Insgesamt bis max. 250€  jährlich","Ja","Insgesamt bis max. 180/200/220€ pro KJ","max. 90€ jährlich","Insgesamt bis max. 120/180€ pro KJ","Tarifstufe 300 bis 600= 200 € jährlich\nTarifstufe 600 bis 900= 225 € jährlich\nTarifstufe 900 bis 1200= 250 € jährlich\nTarifstufe 1200 bis 1500= 275 € jährlich\nTarifstufe ab 1500= 300 € jährlich","Tarifstufe 300 bis 600= 250 € jährlich\nTarifstufe 600 bis 900= 300 € jährlich\nTarifstufe 900 bis 1200= 350 € jährlich\nTarifstufe 1200 bis 1500= 400 € jährlich\nTarifstufe ab 1500= 450 € jährlich","Ja","200-400 € jährlich\n(50€/Stufe)","200-400 € jährlich\n(50€/Stufe)","Insgesamt bis max. 200€  jährlich","Ja","Ja"]
["Refraktive Chirurgie","Ja","Ja","100%","100%","100%","100%","100%","100%\n+\n100% aus Extrabudget","Ja","Ja","Ja","Ja","Ja","Ja","Nein","Ja","Ja","Ja","Ja","Ja","Ja","Ja","Ja","Ja","insgesamt bis max. 180€ jährlich","Ja","Ja","Ja","Ja","    Bei 300 € Budget: 120 EUR\n    Bei 600 € Budget: 240 EUR\n    Bei 900 € Budget: 360 EUR","Ja","Ja","Ja","Ja","max. 90€ jährlich","Insgesamt bis max. 120/180€ pro KJ","Bestandteil der Leistungsart \"Sehhilfe\" mit gemeinsamen  Höchstsatz","Ja","Ja","200-400 € jährlich\n(50€/Stufe)","200-400 € jährlich\n(50€/Stufe)","Ja","Ja","Ja"]
["Vorsorgeuntersuchungen","Ja","Nein","Ja","Ja","Ja","Ja","Ja","Ja","Nein\nnur bei Schwangerschaft","Nein\nnur bei Schwangerschaft","Nein","Nein","Nein","Ja","Nein","Ja","Ja","Ja","Ja","Ja","Nein","Ja","Ja","Ja","Nein","Nein","Ja","Ja","Nein","Ja","Ja, 5 definierte Vorsorgeunters.","Ja","Ja","Nein","Ja","Ja","Ja","Ja","Ja","Ja","Nein","Ja","Ja","Ja"]
["Schutzimpfungen","Ja","Nein","Ja","Ja","Ja","Ja","Ja","Ja","Nein","Nein","Nein","Nein","Nein","Ja","Nein","Ja","Nein","Nein","Nein","Ja","Nein","Ja","Ja","Ja","Nein","Nein","Ja","Ja","Nein","Ja","Nein","Ja","Ja","Nein","Nein","Ja","Ja","Ja","Ja","Ja","Nein","Ja","Ja","Ja"]
["Präventionskurse","Ja","Nein","Ja","Ja","Ja","Ja","Ja","Ja","Nein","Nein","Nein","Nein","Nein","Ja","Nein","Nein","Nein","Nein","Nein","Ja","Nein","Nein","Nein","Nein","Nein","Nein","Nein","Nein","Nein","Nein","Nein","Nein","Nein","Nein","Ja","Ja","Nein","Nein","Ja","Ja","Ja","Ja","Nein","Nein"]
["Arznei & Verbandmittel","Ja","Ja","Ja","Ja","Ja","Ja","Ja","Ja","Ja","Ja","Ja","Ja","Ja","Ja","Ja","Ja","Ja","Ja","Ja","Ja","Ja","Ja","Ja","Ja","Ja","Ja","Ja","Ja","Ja","Ja","Nein","Ja","Ja","Ja","Nein","Ja","Ja","Ja","Ja","Ja","Ja","Nein","Ja","Ja"]
["Heil- & Hilfsmittel","Ja","Ja","Ja","Ja","Ja","Ja","Ja","Ja","Ja","Ja","Ja","Ja","Ja","Ja","Ja","Ja","Ja","Ja","Ja","Ja","Ja","Ja","Ja","Ja","Ja","Ja","Ja","Ja","Ja","Ja","Ja","Ja","Ja","Ja","Nein","Ja","Ja","Ja","Ja","Ja","Ja","Hörgeräte","Ja","Ja"]
["Kinesio—Taping (Arzt/ Heilpraktiker/Physiotherapeut)","max. 100€ jährlich","Nein","Nein","Nein","Nein","Nein","Nein","Nein","Nein","Nein","Nein","Ja","Ja","Ja","Nein","Nein","Nein","Nein","Nein","Ja","Nein","Nein","Nein","Nein","Nein","max. 100€ jährlich f. ärztl. verordnetes","Nein","Nein","Nein","Nein","Nein","max. 250€ jährlich","Ja","Nein","Nein","Nein","Nein","max. 250€ jährlich","Nein","Ja","Ja","Nein","Nein","Nein"]
["Übernahme gesetzl. Zuzahlungen","Ja","Ja","Ja","Ja","Ja","Ja","Ja","Ja","Ja","Ja","Ja","Ja","Ja","Ja","Ja","Ja","Nein","Nein","Nein","Ja","Ja","Ja","Ja","Ja","Ja","Ja","Ja","Ja","Ja","Nein","Nein","Ja","Ja","Ja","Nein","Ja","Ja","Ja","Ja","Ja","Ja","Nein","Ja","Ja"]
["Heilpraktiker / Naturheilkunde","Ja","Ja","Ja","Ja","Ja","Ja","Ja","Ja","Ja","Ja","Ja","Ja","Ja","Ja","Ja","Ja","Ja","Ja","Ja","Ja","Nein","Ja","Ja","Ja","Nur Heilpraktiker","Nur Heilpraktiker","Ja","Ja","Ja","Ja","Nur Heilpraktiker","Ja","Ja","Ja","Nein","Ja","Ja","Ja","Ja","Ja","Ja","Ja","Ja","Ja"]
["Erstattung für nichtärztliche Osteopathen u. Chiropraktiker","Nein","Nein","Nein","Nein","Nein","Nein","Nein","Nein","Nein","Nein","Nein","Nein, nur für Heilpraktiker","Nein, nur für Heilpraktiker","Nein, nur für Heilpraktiker","Nein","Nein","Nein","Nein","Nein","Nur für Osteopathen","Nein","Nein","Nein","Nein","Nein","Ja","Nein","Nein","Nein","Nein","Nein","Nein","Nein","Nur für Osteopathen","Nein","Nur für Osteopathen","Nein","Nein","Nein","Nein","Nein","Nein","Nur für Osteopathen","Nur für Osteopathen"]
["KHT/ Leistungspauschale","Nein","Nein","Nein","Nein","Nein","Nein","Nein","Nein","Nein","Nein","k. A.","Nein","Nein","10€, max. 28T/KJ","Nein","10€, max. 28T/KJ","Nein","Nein","Nein","Nein","10€, max. 28T","10€, max. 28T","10€, max. 28T","10€, max. 28T","Nein","Nein","Ja","Ja","Nein","Nein","150€ ins., ab 5 Tagen im KH","150€ ins., ab 5 Tagen im KH2","150€ ins., ab 5 Tagen im KH2","10€ pro Tag im Krankenhaus","Nein","Nein","10€ pro Tag im Krankenhaus","15€ pro Tag im Krankenhaus","Nein","10€, max. 28T","10€, max. 28T","10€ pro Tag im Krankenhaus","Nein","Nein"]
["Sonstige Leistungen (Ambulant)","Nein","Nein","Nein","Nein","Nein","Nein","Nein","Nein","Nein","Nein","Nein","Nein","Nein","Ja, Budgetleistung ambulante Psychotherapie","Nein","Nein","Nein","Nein","Nein","Nein","Nein","Nein","Nein","Nein","Nein","Nein","Nein","Nein","Nein","Nein","Nein","Nein","Nein","Nein","Nein","Nein","Nein","Nein","Nein","Nein","Nein","Nein","Nein","Nein"]
["Arbeitgeberportal","Ja","Ja","Ja","Ja","Ja","Ja","Ja","Ja","Nein","Nein","Ja","Ja","Ja","Ja","Ja","Ja",null,null,null,"Ja","Ja","Ja","Ja","Ja","Ja","Ja","Nein","Nein","Ja","Ja","Ja","Ja","Ja","Ja","Ja","Ja","Nein","Nein","Ja","Nein","Nein","Nein","Ja","Ja"]
["Beitrag 1","300€:   13,00€","300€:   12,90€","300€:   13,90€","300€:   24,90€","300€:   41,70€","300€:   56,70€","300€:   17,90€","300€:   15,90€","300 €:   10,91€","300 €:   13,68€","300€: 11,92€","300€: 11,92€","300€: 12,98€","300€: 13,59€","300€: 9,75","300€: 13,00€","300€: 16,80€","300€: 35,34€","300€: 43,40€","300: 12,90 €","300€: 10,40€","300€:   15,65€","300€: 12,81€","300€:    \nAlter 0-15: 15,20 € \nAlter 16-65: 17,70 €","300€:    9,95€","500€:   14,50€","300€: 10,60€","300€: 11,90€","300€:   13,21€","300 €: 13,20 €","400€: 13,80€","400€: 15,96€","400€:   16,30€","Beitrag/Alter: 0-15 J./16-66 J./ ab 67 J.","300 €: 5,85€ mit Zahnersatz 7,96€","300 €: 12,31€ mit Zahnersatz 13,85€","300 €: 9,90€ mit Extra-Budget 10,90€","300 €: 10,90€ mit Extra-Budget 11,90€","300€: 15,68€","300€: 12,50€","300€: 13,50€","300€: 12,79€","300 €: 16,52 €","300 €: 13,31 €"]
["Beitrag 2","600€:   22,00€","600€:   21,90€","600€:   22,90€","600€:   32,90€","600€:   49,70€","600€:   64,70€","600€:   30,90€","600€:   24,90€","600 €:   19,48€","600 €:   23,44€","600€: 21,88€","600€: 21,88€","600€: 19,33€","600€: 24,30€","-","600€: 21,10€","600€: 22,48€","600€: 41,74€","600€: 49,80€","600: 21,90 €","500€: 15,65€","500€:   23,52€","500€: 18,59€","500€:\nAlter 0-15: 19,90 € \nAlter 16-65: 25,40 €","600€:  19,75€","800€:   25,67€","600€: 16,90€","600€: 19,70€","600€:   22,54€","600 €: 23,98 €","800€: 22,10€","800€: 27,20€","800€:   30,90€","400€: 11,94€ / 17,51€  /  32,27€","-","600 €: 19,82€ mit Zahnersatz 23,38€","600 €: 17,90€ mit Extra-Budget 18,90€","600 €: 19,90€ mit Extra-Budget 20,90€","600€: 25,97€","600€: 18,90€","600€: 21,90€","600€: 21,48€","600 €: 28,83 €","600 €: 23,23 €"]
["Beitrag 3","900€:   30,00€","900€:   29,90€","900€:   32,90€","900€:   41,90€","900€:   58,70€","900€:   73,70€","900€:   44,90€","900€:   35,90€","900 €:   26,88€","900 €:   31,87€","900€: 28,95€","900€: 28,95€","900€: 23,55€","900€: 30,86€","-","900€: 29,50€","900€: 28,18€","900€: 47,44€","900€: 55,50€","1.000: 34,50 €","750€: 20,90€","750€:   31,45€","750€: 25,52€","750€:\nAlter 0-15: 24,50 € \nAlter 16-65: 33,60 €","900€:  28,27€","1100€: 35,30€","900€: 25,60€","900€: 29,50€","900€:   31,17€","900 €: 30,52 €","1200€: 27,60€","1200€: 35,91€","1200€: 42,20€","800€: 14,38€ / 28,46€ / 62,56€","-","900 €: 24,33€ mit Zahnersatz 29,87€","900 €: 23,90€ mit Extra-Budget 24,90€","900 €: 26,90€ mit Extra-Budget 27,90€","900€: 33,84€","900€: 23,90€","900€: 29,50€","900€: 28,42€","900 €: 38,23 €","900 €: 30,80 €"]
["Beitrag 4","1200€: 37,00€","1200€: 36,90€","1200€: 41,90€","1200€: 48,90€","1200€: 65,70€","1200€: 80,70€","1200€: 59,90€","1200€: 45,90€","1200 €: 33,89€","1200 €: 39,86€","1200€: 36,33€","1200€: 36,33€","1200€: 27,72€","1200€: 39,18€","-","-","1200€: 33,18€","1200€: 52,44€","1200€: 60,50€","1.500: 48,00 €","-","1000€: 38,54€","-","1000€: \nAlter 0-15: 27,70 € \nAlter 16-65: 40,00 €","1200€: 36,16€","1400€: 44,22€","1200€: 32,00€","1200€: 36,90€","1200€: 38,74€","-","-","1600€: 42,32€","1600€: 49,50€","1200€: 15,80€ / 38,94€ / 89,46€","-","1200 €: 28,48€ mit Zahnersatz 35,70€","1200 €: 28,90€ mit Extra-Budget 29,90€","1200 €: 32,90€ mit Extra-Budget 33,90€","1200€: 40,21€","1200€: 28,50€","1200€: 36,90€","1200€: 35,74€","1.200 €: 49,65 €","1.200 €: 39,99 €"]
["Beitrag 5","1500€: 43,00€","1500€: 42,90€","1500€: 49,90€","1500€: 53,90€","1500€: 70,70€","1500€: 85,70€","1500€: 69,90€","1500€: 53,90€","1500 €: 38,95€","1500 €: 45,63€","1500€: 42,67€","1500€: 42,67€","1500€: 31,87€","1500€: 46,33€","-","-","1500€: 37,48€","1500€: 56,74€","1500€: 64,80€","-","-","1250€: 44,74€","-","1250€:\nAlter 0-15: 33,30 € \nAlter 16-65: 45,80 €","1500€: 42,14€","1700€: 49,92€","-","-","1500€: 44,03€","-","-","-","-","-","-","-","1500 €: 33,90€ mit Extra-Budget 34,90€","1500 €: 37,90€ mit Extra-Budget 38,90€","-","1500€: 33,50€","1500€: 44,90€","1500€: 42,96€","1.500 €: 55,99 €","1.500 €:45,10 €"]
["Beitrag 6","-","-","-","-","-","-","-","-","-","-","-","-","-","-","-","-","-","-","-","-","-","-","-","-","-","-","-","-","-","-","-","-","-","-","-","-","1700 €: 37,90€ mit Extra-Budget 38,90€","1700 €: 41,90€ mit Extra-Budget 42,90€","-","-","-","-","-","-"]
[]
["Sternchenvermerk",null,"*Für Kleinstkollektive (5-9 MA) keine 300 Budget",null,null,null,null,null,null,null,null,null,null,null,null,null,null,"Angaben von Homeplage entnommen, da zum Erstellungszeitrpunkt keine AVB veröffentlicht","Angaben von Homeplage entnommen, da zum Erstellungszeitrpunkt keine AVB veröffentlicht","Angaben von Homeplage entnommen, da zum Erstellungszeitrpunkt keine AVB veröffentlicht","*ab 5 Personen (für eine Budgethöhe von 600 € bis 1.500 €)",null,"1 Verdoppelung des Grundbudgets bei Arbeitsunfall mit stationärem Aufenthalt im laufenden und Folgejahr.","1 Verdoppelung des Grundbudgets bei Arbeitsunfall mit stationärem Aufenthalt im laufenden und Folgejahr.","wenn innerhalb von 6 Monaten ab Beginn des Gruppenvertrages mindestens 50 AN versichert.",null,null,null,null,null,null,null,null,"1 Extra-Budget (doppeltes Budget) bei Arbeitsunfall mit vollstationärem Aufenthalt im laufenden und Folgejahr.",null,null,null,"Erhöhung des jährlichen Budgets bei Leistungsfreiheit \nWird im Gruppenversicherungsvertrag die Erhöhung des jährlichen Budgets bei Leistungsfreiheit vereinbart, so gelten folgende Rege\u0002lungen: \nHat eine versicherte Person für ein Kalenderjahr, in dem die Versicherung 12 Monate bestand und diese nicht in Anwartschaft geführt \nwurde, keine Leistungen gemäß Abschnitt B. 2. in Anspruch genommen, so steigt im darauffolgenden Kalenderjahr das jährliche \nBudget auf 125 % der versicherten Tarifstufe. Hat eine versicherte Person für zwei oder mehr Kalenderjahre, in denen die Versiche\u0002rung 24 oder mehr Monate bestand und diese nicht in Anwartschaft geführt wurde, keine Leistungen gemäß Abschnitt B. 2. in An\u0002spruch genommen, so steigt im darauffolgenden Kalenderjahr das jährliche Budget auf 150 % der versicherten Tarifstufe. Eine weitere \nErhöhung findet nicht statt. Werden nach einem oder mehreren leistungsfreien Kalenderjahren wieder Leistungen gemäß Abschnitt B. 2. in Anspruch genommen, \nso entspricht im darauffolgenden Kalenderjahr das jährliche Budget wieder der ursprünglichen Höhe der versicherten Tarifstufe. (nur bei Tarifoption \"Extra-Budget\")"]
[null,null,"**Als Kleinstkollektiv 5-9 MA möglich",null,null,null,null,null,null,null,null,null,null,null,null,null,null,null,null,null,"*ab 10 Personen (für eine Budgethöhe von 300 €)",null,null,null,"Diese dürfen in den letzten 12 Monaten nicht mehr als 20 Tage AU gewesen sein",null,null,null,null,null,null,null,"2: 150 € bei stationärer Anschlussheilbehandlung, Transportkosten bis zu 250 € /KJ","2: 150 € bei stationärer Anschlussheilbehandlung, Transportkosten bis zu 250 € /KJ"]

{"sheet":"Listen","index":2,"n_rows":44,"n_cols":1,"rows_kept":44,"cut":false,"hidden":true,"merged":[]}
["SIGNAL IDUNA - GesundAKTIV+"]
["ALLIANZ - MeinGesundheitsBudget (alt)"]
["Allianz - MeineGesundheit (neu)"]
["Allianz - MeineGesundheit (neu) + RundumZahn 70"]
["Allianz - MeineGesundheit (neu) + RundumZahn 90"]
["Allianz - MeineGesundheit (neu) + RundumZahn 100"]
["Allianz - MeineGesundheit (neu) + Sehhilfe 100"]
["Allianz - MeineGesundheit (neu) + SehhilfeExtra"]
["ARAG - BudgetFlex Komfort"]
["ARAG - BudgetFlex Premium"]
["AXA - FlexMed easy"]
["AXA - FlexMed easy (neu)"]
["AXA - FlexMed easyPLUS"]
["AXA - FlexMed easyPremium"]
["BARMENIA - WellYouStart"]
["BARMENIA - WellYou"]
["Debeka - DebeCare"]
["Debeka - DebeCare Plus"]
["Debeka - DebeCare Best"]
["Münchener Verein - GemeinsamGesundBudget"]
["GOTHAER - FlexSelect"]
["GOTHAER - FlexSelectPremium1"]
["GOTHAER - FlexSelectXL1"]
["GOTHAER - FlexSelect FAN"]
["HALLESCHE - FEELfree"]
["HALLESCHE - FEELfree-up 1"]
["NÜRNBERGER - BudgetSelect"]
["NÜRNBERGER - BudgetSelect mit Zahnersatz"]
["OTTNOVA - CrewCare"]
["R+V - Budget PROFIL"]
["CONTINENTALE - ConCept Choose"]
["CONTINENTALE - ConCept Choose More"]
["CONTINENTALE - ConCept Choose Max 1"]
["UKV/BBKK - BudgetPro"]
["Württembergische - Startbudget"]
["Württembergische - Budget"]
["Hanse Merkur - BKB"]
["Hanse Merkur - BKBT"]
["DKV - BonusMed Budget (BBT)"]
["LKH - TeamUpgrade Fit"]
["LKH - TeamUpgrade Smile"]
["Generali - Buisness+"]
["R+V - Budget PROFIL team (2023)"]
["R+V - Budget PROFIL (2023)"]

{"sheet":"Tabelle3","index":3,"n_rows":36,"n_cols":7,"rows_kept":36,"cut":false,"hidden":true,"merged":[[13,0,19,0],[13,1,14,2],[13,3,14,3],[19,1,19,2],[0,0,0,2],[1,1,1,2],[4,0,12,0],[4,1,4,2],[5,1,5,2],[6,1,6,2],[7,1,7,2],[8,1,8,2],[9,1,9,2],[17,5,18,5],[17,6,18,6],[18,1,18,2],[10,1,10,2],[11,1,11,2],[12,1,12,2],[28,1,28,2],[13,4,14,4],[15,1,15,2],[16,1,16,2],[17,1,17,2],[35,0,35,2],[29,1,29,2],[30,1,30,2],[31,0,31,2],[32,0,32,2],[33,0,33,2],[34,0,34,2],[20,0,30,0],[20,1,20,2],[21,1,21,2],[22,1,22,2],[23,1,23,2],[24,1,24,2],[25,1,25,2],[26,1,26,2],[27,1,27,2]]}
[null,null,null,"SIGNAL IDUNA","SIGNAL IDUNA","ALLIANZ","ALLIANZ"]
[null,"Tarifname",null,"GesundAGIL+ mit  ZahnBest+","GesundVITAL+ mit ZahnBest+ ZahnPerfekt+","MeinGesundheitsBudget kombi Plus","MeinGesundheitsBudget kombi Best"]
[null,null,"Tarifeinführung","2022-10-18","2022-10-18","2021-04-01","2021-04-01"]
[null,null,null,"300/600/900/1200/1500","300/600/900/1200/1500","300*/600/900/1200/1500","300/600/900/1200/1500"]
["ALLGEMEIN","Mindestzahl",null,"ab 3 MA ","ab 20 MA","Ab 10 MA**","Ab 10 MA"]
[null,"Auch für PKV-Versicherte"]
[null,"Ohne Gesundheitsprüfung"]
[null,"Volles Budget bei unterjährigem Beginn"]
[null,"Mitversicherung fehlender Zähne"]
[null,"Leistungen für angeratene/ laufende Behandlungen"]
[null,"Beitragsbefrei (b. AU > 6 Wo, Eltern-, Familienpflegezeit)"]
[null,"Weiterversicherung ",null,null,null,"Ja, ab 01.07.","Ja, ab 01.07."]
[null,"Mitversicherung Familienangehörige",null,null,null,"Ja, ab 01.07.2022","Ja, ab 01.07.2022"]
["ZAHN","Zahnersatz (Implantate, Brücken, Kronen)",null,"70 % ohne GKV-über das Budget","90 % ohne GKV über das Budget","70 % inkl. GKV über das Budget / ","90 % inkl. GKV über das Budget / "]
[null,null,null,null,null,"30 % ohne  GKV-Vorleistung","50 % ohne  GKV-Vorleistung"]
[null,"Kieferorthopädie nach Unfall",null,null,null," inkl. schwere Erkrank."," inkl. schwere Erkrank."]
[null,"Zahnbehandlung "]
[null,"Prof. Zahnreinigung",null," max. 300 € jährlich"," max. 300 € jährlich"," insgesamt max. 80-160 € jährlich je nach Budgethöhe"," insgesamt max. 80-160 € jährlich je nach Budgethöhe"]
[null,"Bleaching ",null," max. 100 € jährlich"," max. 100 € jährlich"]
[null,"Schmerzstillende Behandlungen"]
["AMBULANT & KHT","Sehhilfen",null," max. 300 € jährlich"," max. 300 € jährlich"," max. 180-260 € jährlich je n. Budgethöhe"," max. 180-260 € jährlich je n. Budgethöhe"]
[null,"Refraktive Chirurgie"]
[null,"Vorsorgeuntersuchungen"]
[null,"Schutzimpfungen"]
[null,"Präventionskurse"]
[null,"Arznei & Verbandmittel"]
[null,"Kinesio—Taping (Arzt/ Heilpraktiker/Physiotherapeut)",null,"max. 100€ jährlich"," max. 100€ jährlich"]
[null,"Heil- & Hilfsmittel"]
[null,"Übernahme gesetzl. Zuzahlungen"]
[null,"Heilpraktiker / Naturheilkunde"]
[null,"KHT/ Leistungspauschale"]
["Preis",null,null,"300€:   24,22€","300€:   32,68€","300€:   22,48€","300€:   32,89€"]
["(je Budgetstufe)",null,null,"600€:   33,22€","600€:   41,68€","600€:   28,48€","600€:   38,89€"]
[null,null,null,"900€:   41,22€","900€:   49,68€","900€:   33,48€","900€:   43,89€"]
[null,null,null,"1200€: 48,22€","1200€: 56,68€","1200€: 38,48€","1200€: 48,89€"]
[null,null,null,"1500€: 54,22€","1500€: 62,68€","1500€: 42,48€","1500€: 52,89€"]